[Event "Early-Titled-Tuesday-Blitz-March-05-2024"]
[Site "Chess.com"]
[Date "2024.03.05"]
[Round "6"]
[White "averageFM"]
[Black "KorolDimitriy75"]
[Result "0-1"]
[WhiteElo "2597"]
[BlackElo "2449"]
[TimeControl "180+1"]
[EndTime "9:08:58 PST"]
[Termination "KorolDimitriy75 won by resignation"]

1. d4 {[%clk 0:03:00.9]} 1... Nf6 {[%clk 0:02:56.4]} 2. Nc3 {[%clk 0:03:00.1]}
2... d5 {[%clk 0:02:55.8]} 3. e4 {[%clk 0:02:59.8]} 3... dxe4 {[%clk 0:02:55.3]}
4. f3 {[%clk 0:02:55.2]} 4... c5 {[%clk 0:02:55.1]} 5. d5 {[%clk 0:02:49.3]}
5... e6 {[%clk 0:02:54.6]} 6. fxe4 {[%clk 0:02:47.4]} 6... exd5 {[%clk 0:02:53]}
7. exd5 {[%clk 0:02:47.9]} 7... Bd6 {[%clk 0:02:13.6]} 8. Bb5+ {[%clk
0:02:43.5]} 8... Bd7 {[%clk 0:02:10.7]} 9. Qe2+ {[%clk 0:02:42.4]} 9... Qe7
{[%clk 0:01:58.3]} 10. Qxe7+ {[%clk 0:02:41.5]} 10... Kxe7 {[%clk 0:01:45]} 11.
Bd3 {[%clk 0:02:40.1]} 11... Re8 {[%clk 0:01:37.2]} 12. Nge2 {[%clk 0:02:38.9]}
12... a6 {[%clk 0:01:29.6]} 13. O-O {[%clk 0:02:36.7]} 13... Kf8 {[%clk
0:01:29.5]} 14. Bg5 {[%clk 0:02:26.5]} 14... Be5 {[%clk 0:01:28.8]} 15. Ng3
{[%clk 0:02:19.4]} 15... b5 {[%clk 0:01:23.7]} 16. Nge4 {[%clk 0:02:11.5]} 16...
Nxe4 {[%clk 0:00:53.2]} 17. Nxe4 {[%clk 0:02:10.1]} 17... c4 {[%clk 0:00:51]}
18. Be2 {[%clk 0:01:41.3]} 18... Bd4+ {[%clk 0:00:39.3]} 19. Kh1 {[%clk
0:01:40.7]} 19... Rxe4 {[%clk 0:00:38.6]} 20. Bf3 {[%clk 0:01:40.6]} 20... Re8
{[%clk 0:00:32.2]} 21. Bh5 {[%clk 0:01:31.6]} 21... g6 {[%clk 0:00:27.2]} 22.
Bf3 {[%clk 0:01:29.7]} 22... Bf5 {[%clk 0:00:20.6]} 23. c3 {[%clk 0:01:12.7]}
23... Bg7 {[%clk 0:00:20.4]} 24. d6 {[%clk 0:01:11.7]} 24... Ra7 {[%clk
0:00:18]} 25. Be7+ {[%clk 0:01:11.3]} 25... Kg8 {[%clk 0:00:14.2]} 26. g4 {[%clk
0:00:58.5]} 26... Be6 {[%clk 0:00:13.4]} 27. Rae1 {[%clk 0:00:55.3]} 27... Bf8
{[%clk 0:00:12.3]} 28. Bf6 {[%clk 0:00:39.9]} 28... Bxd6 {[%clk 0:00:11.2]} 29.
Rd1 {[%clk 0:00:40.1]} 29... Bf8 {[%clk 0:00:10.4]} 30. g5 {[%clk 0:00:39.5]}
30... Nd7 {[%clk 0:00:09.8]} 31. Bd4 {[%clk 0:00:38.4]} 31... Rc7 {[%clk
0:00:09]} 32. h4 {[%clk 0:00:36.1]} 32... Nc5 {[%clk 0:00:08]} 33. Be5 {[%clk
0:00:35.4]} 33... Rcc8 {[%clk 0:00:08.1]} 34. h5 {[%clk 0:00:33.1]} 34... Nd3
{[%clk 0:00:07.8]} 35. hxg6 {[%clk 0:00:32.7]} 35... fxg6 {[%clk 0:00:06.4]} 36.
Bb7 {[%clk 0:00:32.2]} 36... Nxe5 {[%clk 0:00:05.8]} 37. Bxc8 {[%clk 0:00:30.4]}
37... Bxc8 {[%clk 0:00:05.3]} 38. Rfe1 {[%clk 0:00:30.1]} 38... Bb7+ {[%clk
0:00:04.5]} 0-1

[Event "Early-Titled-Tuesday-Blitz-March-05-2024"]
[Site "Chess.com"]
[Date "2024.03.05"]
[Round "6"]
[White "lagunanivaria"]
[Black "bazar-wokzal"]
[Result "1-0"]
[WhiteElo "2445"]
[BlackElo "2579"]
[TimeControl "180+1"]
[EndTime "9:08:58 PST"]
[Termination "lagunanivaria won by resignation"]

1. e4 {[%clk 0:03:00.9]} 1... Nc6 {[%clk 0:02:59.5]} 2. Nf3 {[%clk 0:02:56.4]}
2... d5 {[%clk 0:02:59.2]} 3. exd5 {[%clk 0:02:51.3]} 3... Qxd5 {[%clk
0:02:57.6]} 4. Nc3 {[%clk 0:02:51.7]} 4... Qa5 {[%clk 0:02:54]} 5. Bc4 {[%clk
0:02:47.8]} 5... Bg4 {[%clk 0:02:53.4]} 6. h3 {[%clk 0:02:44.3]} 6... Bh5 {[%clk
0:02:52.7]} 7. d3 {[%clk 0:02:43.4]} 7... O-O-O {[%clk 0:02:52.1]} 8. g4 {[%clk
0:02:42.4]} 8... Bg6 {[%clk 0:02:51.9]} 9. Bd2 {[%clk 0:02:42.1]} 9... e5 {[%clk
0:02:48.2]} 10. Qe2 {[%clk 0:02:40]} 10... Nd4 {[%clk 0:02:47.5]} 11. Nxd4
{[%clk 0:02:38.3]} 11... exd4 {[%clk 0:02:47.5]} 12. Nd5 {[%clk 0:02:30.3]}
12... Qc5 {[%clk 0:02:46]} 13. Nf4 {[%clk 0:02:04.8]} 13... Nf6 {[%clk
0:02:41.3]} 14. Nxg6 {[%clk 0:02:03.2]} 14... fxg6 {[%clk 0:02:29.6]} 15. O-O-O
{[%clk 0:02:01.6]} 15... Bd6 {[%clk 0:02:21.9]} 16. Kb1 {[%clk 0:01:58.6]} 16...
Qc6 {[%clk 0:02:04.4]} 17. g5 {[%clk 0:01:38.7]} 17... Nh5 {[%clk 0:01:51.3]}
18. Qg4+ {[%clk 0:01:30.7]} 18... Kb8 {[%clk 0:01:50.5]} 19. Rhe1 {[%clk
0:01:29.2]} 19... Rhf8 {[%clk 0:01:47.8]} 20. Re2 {[%clk 0:01:19.1]} 20... Qf3
{[%clk 0:01:36.4]} 21. Rde1 {[%clk 0:01:09.1]} 21... a6 {[%clk 0:01:36]} 22. a3
{[%clk 0:01:08.2]} 22... b5 {[%clk 0:01:24.9]} 23. Be6 {[%clk 0:01:06.9]} 23...
Qxg4 {[%clk 0:01:15.4]} 24. Bxg4 {[%clk 0:01:06]} 24... Nf4 {[%clk 0:01:12.4]}
25. Bxf4 {[%clk 0:01:05.3]} 25... Rxf4 {[%clk 0:01:10.9]} 26. Re4 {[%clk
0:01:03.5]} 26... Rdf8 {[%clk 0:01:05]} 27. Rxf4 {[%clk 0:01:02.4]} 27... Rxf4
{[%clk 0:01:03.9]} 28. Re8+ {[%clk 0:00:59.7]} 28... Kb7 {[%clk 0:01:03.5]} 29.
Rg8 {[%clk 0:00:53.9]} 29... Be5 {[%clk 0:00:56.5]} 30. Re8 {[%clk 0:00:52.8]}
30... Bd6 {[%clk 0:00:56]} 31. Rg8 {[%clk 0:00:52.9]} 31... Rf7 {[%clk 0:00:54]}
32. Be6 {[%clk 0:00:51.8]} 32... Re7 {[%clk 0:00:50.6]} 33. Bd5+ {[%clk
0:00:52.1]} 33... c6 {[%clk 0:00:50.7]} 34. Be4 {[%clk 0:00:52]} 34... a5 {[%clk
0:00:41.9]} 35. Rh8 {[%clk 0:00:51.4]} 35... h6 {[%clk 0:00:27.7]} 36. gxh6
{[%clk 0:00:50.7]} 36... gxh6 {[%clk 0:00:27.9]} 37. Rxh6 {[%clk 0:00:51.4]}
37... Rg7 {[%clk 0:00:20.6]} 38. Bxg6 {[%clk 0:00:43.7]} 38... Bf4 {[%clk
0:00:20.4]} 39. Rh7 {[%clk 0:00:44.2]} 39... Rxh7 {[%clk 0:00:20.5]} 40. Bxh7
{[%clk 0:00:45.1]} 40... Kc7 {[%clk 0:00:20.7]} 41. Be4 {[%clk 0:00:43.8]} 41...
Kd6 {[%clk 0:00:19.5]} 42. h4 {[%clk 0:00:43.7]} 42... c5 {[%clk 0:00:17.9]} 43.
h5 {[%clk 0:00:43.7]} 43... a4 {[%clk 0:00:17.9]} 44. Bg6 {[%clk 0:00:42.7]}
44... Kd5 {[%clk 0:00:17.3]} 45. Be8 {[%clk 0:00:42.1]} 45... c4 {[%clk
0:00:13.9]} 46. Bxb5 {[%clk 0:00:41.7]} 46... cxd3 {[%clk 0:00:12.5]} 47. cxd3
{[%clk 0:00:42.6]} 47... Kc5 {[%clk 0:00:12.8]} 48. Bxa4 {[%clk 0:00:42.7]}
48... Kb6 {[%clk 0:00:12.9]} 49. b4 {[%clk 0:00:42.8]} 1-0

[Event "Early-Titled-Tuesday-Blitz-March-05-2024"]
[Site "Chess.com"]
[Date "2024.03.05"]
[Round "6"]
[White "IvanSoriano1"]
[Black "eagleclaw07"]
[Result "1-0"]
[WhiteElo "2589"]
[BlackElo "2829"]
[TimeControl "180+1"]
[EndTime "9:08:59 PST"]
[Termination "IvanSoriano1 won by resignation"]

1. d4 {[%clk 0:03:00.9]} 1... d5 {[%clk 0:02:59.6]} 2. c4 {[%clk 0:03:00.7]}
2... e6 {[%clk 0:03:00.3]} 3. Nc3 {[%clk 0:03:00.5]} 3... Nf6 {[%clk 0:03:00.7]}
4. cxd5 {[%clk 0:02:59.4]} 4... exd5 {[%clk 0:03:01.6]} 5. Bg5 {[%clk
0:02:59.4]} 5... Be7 {[%clk 0:03:01.4]} 6. e3 {[%clk 0:02:59.2]} 6... O-O {[%clk
0:03:01.1]} 7. Qc2 {[%clk 0:02:58.7]} 7... c6 {[%clk 0:03:01.4]} 8. Bd3 {[%clk
0:02:58.7]} 8... Nbd7 {[%clk 0:03:01]} 9. Nf3 {[%clk 0:02:58.9]} 9... Re8 {[%clk
0:03:01.3]} 10. O-O {[%clk 0:02:58.9]} 10... Nf8 {[%clk 0:03:01.7]} 11. h3
{[%clk 0:02:58.7]} 11... g6 {[%clk 0:03:00.2]} 12. Rab1 {[%clk 0:02:54.7]} 12...
Ne6 {[%clk 0:03:00.6]} 13. Bxf6 {[%clk 0:02:50.3]} 13... Bxf6 {[%clk 0:03:01.2]}
14. b4 {[%clk 0:02:51.1]} 14... a6 {[%clk 0:03:01.1]} 15. a4 {[%clk 0:02:50.8]}
15... Bd7 {[%clk 0:02:57.6]} 16. Rfd1 {[%clk 0:02:49.7]} 16... Rc8 {[%clk
0:02:56.3]} 17. a5 {[%clk 0:02:49.9]} 17... Be7 {[%clk 0:02:50.3]} 18. Na4
{[%clk 0:02:49.5]} 18... Bd6 {[%clk 0:02:50]} 19. Nc5 {[%clk 0:02:47.6]} 19...
Rb8 {[%clk 0:02:36.9]} 20. e4 {[%clk 0:02:40.7]} 20... Nf4 {[%clk 0:02:29.8]}
21. e5 {[%clk 0:02:36.4]} 21... Bxc5 {[%clk 0:02:29.6]} 22. bxc5 {[%clk
0:02:06.4]} 22... Nxd3 {[%clk 0:02:28.2]} 23. Qxd3 {[%clk 0:02:07.3]} 23... Bf5
{[%clk 0:02:27.1]} 24. Qc3 {[%clk 0:02:07.9]} 24... Bxb1 {[%clk 0:02:27.1]} 25.
Rxb1 {[%clk 0:02:08.8]} 25... Qe7 {[%clk 0:02:12.5]} 26. Qd2 {[%clk 0:02:03.1]}
26... Rf8 {[%clk 0:02:12.1]} 27. Qe3 {[%clk 0:01:53.6]} 27... Kg7 {[%clk
0:02:11.5]} 28. Nd2 {[%clk 0:01:51.9]} 28... Rbd8 {[%clk 0:02:08.3]} 29. f4
{[%clk 0:01:51.6]} 29... Rd7 {[%clk 0:02:08]} 30. Rf1 {[%clk 0:01:46.8]} 30...
Qd8 {[%clk 0:02:00.2]} 31. Qc3 {[%clk 0:01:32.8]} 31... Qh4 {[%clk 0:01:49.8]}
32. Kh2 {[%clk 0:01:24.2]} 32... f6 {[%clk 0:01:49]} 33. g3 {[%clk 0:01:03.9]}
33... Qh5 {[%clk 0:01:46.5]} 34. g4 {[%clk 0:01:02.3]} 34... Qh6 {[%clk
0:01:45.4]} 35. exf6+ {[%clk 0:01:01.8]} 35... Kg8 {[%clk 0:01:40]} 36. g5
{[%clk 0:00:59.9]} 36... Qh4 {[%clk 0:01:37.9]} 37. Qe3 {[%clk 0:00:44.6]} 37...
h6 {[%clk 0:01:27.3]} 38. Nf3 {[%clk 0:00:35.8]} 38... Qh5 {[%clk 0:01:27.4]}
39. Rg1 {[%clk 0:00:31.1]} 39... Kh8 {[%clk 0:01:10.3]} 40. Rg3 {[%clk
0:00:30.5]} 40... hxg5 {[%clk 0:01:06.4]} 41. Rxg5 {[%clk 0:00:26.7]} 41... Qh6
{[%clk 0:01:02.1]} 42. Rg4 {[%clk 0:00:25.9]} 42... Rh7 {[%clk 0:00:29.5]} 43.
Rh4 {[%clk 0:00:25.1]} 43... Qxh4 {[%clk 0:00:29.1]} 44. Nxh4 {[%clk 0:00:26]}
44... Rxh4 {[%clk 0:00:29.2]} 45. Qe7 {[%clk 0:00:25.9]} 45... Rg8 {[%clk
0:00:29.5]} 46. f7 {[%clk 0:00:24.8]} 46... Rxf4 {[%clk 0:00:27.3]} 47. Qe5+
{[%clk 0:00:24.7]} 47... Kh7 {[%clk 0:00:25.5]} 48. fxg8=Q+ {[%clk 0:00:24.4]}
1-0

[Event "Early-Titled-Tuesday-Blitz-March-05-2024"]
[Site "Chess.com"]
[Date "2024.03.05"]
[Round "6"]
[White "david_gomez"]
[Black "GilbertoHernandezAmura"]
[Result "0-1"]
[WhiteElo "2607"]
[BlackElo "2455"]
[TimeControl "180+1"]
[EndTime "9:08:59 PST"]
[Termination "GilbertoHernandezAmura won by resignation"]

1. e4 {[%clk 0:03:00.9]} 1... d5 {[%clk 0:02:54.5]} 2. d4 {[%clk 0:02:59.6]}
2... dxe4 {[%clk 0:02:51.7]} 3. Nc3 {[%clk 0:02:59.3]} 3... Nf6 {[%clk
0:02:51.2]} 4. Bg5 {[%clk 0:02:58.7]} 4... Nbd7 {[%clk 0:02:44.6]} 5. Qe2 {[%clk
0:02:57.8]} 5... h6 {[%clk 0:02:38.4]} 6. Bh4 {[%clk 0:02:57.6]} 6... g5 {[%clk
0:02:27.8]} 7. Bg3 {[%clk 0:02:57]} 7... Bg7 {[%clk 0:02:28.4]} 8. h4 {[%clk
0:02:52.7]} 8... g4 {[%clk 0:02:23.6]} 9. O-O-O {[%clk 0:02:49.9]} 9... c6
{[%clk 0:02:13.6]} 10. f3 {[%clk 0:02:44.9]} 10... exf3 {[%clk 0:01:57.3]} 11.
gxf3 {[%clk 0:02:45.8]} 11... Nb6 {[%clk 0:01:57.5]} 12. fxg4 {[%clk 0:02:32.3]}
12... Bxg4 {[%clk 0:01:55.8]} 13. Nf3 {[%clk 0:02:31.9]} 13... Nbd5 {[%clk
0:01:51.8]} 14. Ne4 {[%clk 0:02:15.8]} 14... Nxe4 {[%clk 0:01:38.6]} 15. Qxe4
{[%clk 0:02:16.7]} 15... Nf6 {[%clk 0:01:35.1]} 16. Qe3 {[%clk 0:01:10.6]} 16...
Qd5 {[%clk 0:01:33.9]} 17. Re1 {[%clk 0:01:10.5]} 17... O-O {[%clk 0:01:31.9]}
18. Be2 {[%clk 0:00:44.6]} 18... Qxa2 {[%clk 0:01:19.4]} 19. Rhg1 {[%clk
0:00:37.2]} 19... Qa1+ {[%clk 0:01:14.3]} 20. Kd2 {[%clk 0:00:36.8]} 20... Qxb2
{[%clk 0:01:11.9]} 21. Be5 {[%clk 0:00:36.4]} 21... Qb4+ {[%clk 0:01:05.9]} 22.
Kc1 {[%clk 0:00:34.6]} 22... h5 {[%clk 0:01:04.9]} 23. Nh2 {[%clk 0:00:24.4]}
23... Nd5 {[%clk 0:00:41.3]} 24. Qd3 {[%clk 0:00:21.2]} 24... f5 {[%clk
0:00:37.4]} 25. Nxg4 {[%clk 0:00:13.9]} 25... fxg4 {[%clk 0:00:36.3]} 26. Bxg4
{[%clk 0:00:14.8]} 26... hxg4 {[%clk 0:00:36.2]} 27. Bxg7 {[%clk 0:00:13]} 27...
Rf3 {[%clk 0:00:24.3]} 28. Qg6 {[%clk 0:00:07.2]} 28... Qa3+ {[%clk 0:00:24.1]}
29. Kd1 {[%clk 0:00:07.6]} 29... Qa1+ {[%clk 0:00:22]} 30. Ke2 {[%clk
0:00:07.8]} 30... Re3+ {[%clk 0:00:21.7]} 31. Kf2 {[%clk 0:00:08.1]} 31... Rf3+
{[%clk 0:00:14.4]} 32. Ke2 {[%clk 0:00:08.1]} 32... Nf4+ {[%clk 0:00:14.4]} 33.
Kd2 {[%clk 0:00:07.9]} 33... Qa5+ {[%clk 0:00:14.7]} 34. Kc1 {[%clk 0:00:06.8]}
34... Nxg6 {[%clk 0:00:15.6]} 0-1

[Event "Early-Titled-Tuesday-Blitz-March-05-2024"]
[Site "Chess.com"]
[Date "2024.03.05"]
[Round "6"]
[White "Chopper1905"]
[Black "Leonid_Starozhilov"]
[Result "1-0"]
[WhiteElo "2951"]
[BlackElo "2711"]
[TimeControl "180+1"]
[EndTime "9:09:01 PST"]
[Termination "Chopper1905 won by resignation"]

1. d4 {[%clk 0:03:00.9]} 1... Nf6 {[%clk 0:02:59.7]} 2. c4 {[%clk 0:02:59.9]}
2... g6 {[%clk 0:03:00.2]} 3. Nc3 {[%clk 0:02:59]} 3... Bg7 {[%clk 0:03:01]} 4.
e4 {[%clk 0:02:58.5]} 4... d6 {[%clk 0:03:01.7]} 5. Nf3 {[%clk 0:02:58.1]} 5...
Bg4 {[%clk 0:03:01.6]} 6. Be2 {[%clk 0:02:57.8]} 6... a6 {[%clk 0:02:59.3]} 7.
Be3 {[%clk 0:02:57.2]} 7... O-O {[%clk 0:02:58.8]} 8. Rc1 {[%clk 0:02:56.6]}
8... Nfd7 {[%clk 0:02:58.9]} 9. h3 {[%clk 0:02:54.2]} 9... Bxf3 {[%clk
0:02:57.4]} 10. Bxf3 {[%clk 0:02:55.1]} 10... c5 {[%clk 0:02:57.4]} 11. d5
{[%clk 0:02:41.1]} 11... b5 {[%clk 0:02:57.4]} 12. Be2 {[%clk 0:02:36.2]} 12...
b4 {[%clk 0:02:54]} 13. Na4 {[%clk 0:02:34.5]} 13... Nb6 {[%clk 0:02:54.3]} 14.
Nxb6 {[%clk 0:02:31.7]} 14... Qxb6 {[%clk 0:02:55.2]} 15. Qd2 {[%clk 0:02:31.9]}
15... Re8 {[%clk 0:02:46.6]} 16. h4 {[%clk 0:02:30.1]} 16... e6 {[%clk
0:02:36.1]} 17. h5 {[%clk 0:02:29.3]} 17... exd5 {[%clk 0:02:32.9]} 18. hxg6
{[%clk 0:02:25.3]} 18... hxg6 {[%clk 0:02:32.7]} 19. exd5 {[%clk 0:02:10.1]}
19... Nd7 {[%clk 0:02:30.4]} 20. Bh6 {[%clk 0:02:06.1]} 20... Bd4 {[%clk
0:02:16.4]} 21. Kf1 {[%clk 0:02:00.9]} 21... Nf6 {[%clk 0:02:07.3]} 22. Qf4
{[%clk 0:00:19.7]} 22... Ne4 {[%clk 0:01:34.8]} 23. Bf3 {[%clk 0:00:19.8]} 23...
Nxf2 {[%clk 0:01:31.1]} 24. Rh4 {[%clk 0:00:18.2]} 24... Nd3 {[%clk 0:01:21.6]}
25. Qh2 {[%clk 0:00:18]} 25... Nxc1 {[%clk 0:01:19.1]} 26. Bxc1 {[%clk
0:00:17.5]} 26... b3 {[%clk 0:01:16.1]} 27. a3 {[%clk 0:00:11.9]} 27... Re7
{[%clk 0:01:15.4]} 28. Bg5 {[%clk 0:00:11.2]} 28... Rae8 {[%clk 0:01:14.2]} 29.
Rxd4 {[%clk 0:00:11.3]} 29... Qa5 {[%clk 0:00:13.5]} 30. Bd2 {[%clk 0:00:11.2]}
30... Re1+ {[%clk 0:00:11.4]} 31. Kf2 {[%clk 0:00:11.5]} 31... Qb6 {[%clk
0:00:07.9]} 32. Rh4 {[%clk 0:00:12]} 1-0

[Event "Early-Titled-Tuesday-Blitz-March-05-2024"]
[Site "Chess.com"]
[Date "2024.03.05"]
[Round "6"]
[White "ckgchess"]
[Black "Jospem"]
[Result "0-1"]
[WhiteElo "2905"]
[BlackElo "3070"]
[TimeControl "180+1"]
[EndTime "9:09:02 PST"]
[Termination "Jospem won on time"]

1. e4 {[%clk 0:03:00.9]} 1... c5 {[%clk 0:02:59.9]} 2. c3 {[%clk 0:03:01.3]}
2... d6 {[%clk 0:02:59.4]} 3. d4 {[%clk 0:03:01.7]} 3... Nf6 {[%clk 0:03:00.1]}
4. Bd3 {[%clk 0:03:02.1]} 4... Qc7 {[%clk 0:03:00.2]} 5. Nf3 {[%clk 0:03:01.4]}
5... Bg4 {[%clk 0:03:00.4]} 6. O-O {[%clk 0:02:59.5]} 6... e6 {[%clk 0:03:00.6]}
7. h3 {[%clk 0:02:59.4]} 7... Bh5 {[%clk 0:03:00.5]} 8. Bf4 {[%clk 0:02:52]}
8... Nbd7 {[%clk 0:02:58.5]} 9. Nbd2 {[%clk 0:02:48.7]} 9... Be7 {[%clk
0:02:57.9]} 10. Re1 {[%clk 0:02:42.9]} 10... Bg6 {[%clk 0:02:55.6]} 11. Nc4
{[%clk 0:02:24]} 11... O-O {[%clk 0:02:44.2]} 12. e5 {[%clk 0:02:16]} 12... dxe5
{[%clk 0:02:43.9]} 13. Nfxe5 {[%clk 0:02:10.8]} 13... Nxe5 {[%clk 0:02:40.9]}
14. Nxe5 {[%clk 0:02:09.5]} 14... Qb6 {[%clk 0:02:35.7]} 15. Bxg6 {[%clk
0:01:56.6]} 15... hxg6 {[%clk 0:02:36.6]} 16. dxc5 {[%clk 0:01:52.4]} 16... Bxc5
{[%clk 0:02:34]} 17. Qc2 {[%clk 0:01:51]} 17... Rfd8 {[%clk 0:02:16.8]} 18. Rad1
{[%clk 0:01:46.9]} 18... Rd5 {[%clk 0:02:12.7]} 19. c4 {[%clk 0:01:37.7]} 19...
Rxd1 {[%clk 0:02:10.8]} 20. Rxd1 {[%clk 0:01:38.6]} 20... Rc8 {[%clk 0:02:09.3]}
21. a3 {[%clk 0:01:28.8]} 21... a5 {[%clk 0:01:50.7]} 22. Bg5 {[%clk 0:01:19.6]}
22... Qc7 {[%clk 0:01:29.1]} 23. Qe2 {[%clk 0:00:59.6]} 23... Rd8 {[%clk
0:01:15.7]} 24. Rxd8+ {[%clk 0:00:53.2]} 24... Qxd8 {[%clk 0:01:16.6]} 25. Nd3
{[%clk 0:00:50.4]} 25... Bd4 {[%clk 0:01:14.5]} 26. b4 {[%clk 0:00:48.6]} 26...
Qc7 {[%clk 0:01:05.4]} 27. Bxf6 {[%clk 0:00:46.5]} 27... gxf6 {[%clk 0:01:05.1]}
28. c5 {[%clk 0:00:46]} 28... Qc6 {[%clk 0:01:00.2]} 29. Qf3 {[%clk 0:00:27.6]}
29... Qd7 {[%clk 0:01:00.3]} 30. g3 {[%clk 0:00:25.3]} 30... a4 {[%clk 0:00:57]}
31. h4 {[%clk 0:00:24.5]} 31... f5 {[%clk 0:00:55.2]} 32. Qf4 {[%clk 0:00:20.3]}
32... Qd5 {[%clk 0:00:50.9]} 33. Qb8+ {[%clk 0:00:17.1]} 33... Kg7 {[%clk
0:00:50.8]} 34. Qd6 {[%clk 0:00:15.9]} 34... Qxd6 {[%clk 0:00:38.8]} 35. cxd6
{[%clk 0:00:16.2]} 35... Kf8 {[%clk 0:00:39.7]} 36. Nc5 {[%clk 0:00:16.2]} 36...
b5 {[%clk 0:00:37.6]} 37. Na6 {[%clk 0:00:08.3]} 37... Bb2 {[%clk 0:00:25.5]}
38. Nc7 {[%clk 0:00:03.2]} 38... Bxa3 {[%clk 0:00:24.1]} 39. Nxb5 {[%clk
0:00:03.6]} 39... Bxb4 {[%clk 0:00:24.6]} 0-1

[Event "Early-Titled-Tuesday-Blitz-March-05-2024"]
[Site "Chess.com"]
[Date "2024.03.05"]
[Round "6"]
[White "ljuks68"]
[Black "JonasEilenberg"]
[Result "0-1"]
[WhiteElo "2404"]
[BlackElo "2540"]
[TimeControl "180+1"]
[EndTime "9:09:02 PST"]
[Termination "JonasEilenberg won by resignation"]

1. e4 {[%clk 0:03:00.9]} 1... c5 {[%clk 0:02:59.9]} 2. Nf3 {[%clk 0:03:00.6]}
2... Nc6 {[%clk 0:03:00.6]} 3. d4 {[%clk 0:03:00.6]} 3... cxd4 {[%clk
0:03:01.5]} 4. Nxd4 {[%clk 0:03:01.1]} 4... e5 {[%clk 0:03:02.4]} 5. Nb5 {[%clk
0:03:01]} 5... d6 {[%clk 0:03:02.9]} 6. c4 {[%clk 0:03:01.4]} 6... g6 {[%clk
0:03:02.1]} 7. N1c3 {[%clk 0:02:59.7]} 7... a6 {[%clk 0:03:01.7]} 8. Na3 {[%clk
0:02:59.6]} 8... Bg7 {[%clk 0:03:02.3]} 9. Nd5 {[%clk 0:02:57.9]} 9... Be6
{[%clk 0:03:00.3]} 10. Be3 {[%clk 0:02:52.6]} 10... Rc8 {[%clk 0:02:59.9]} 11.
Be2 {[%clk 0:02:35.9]} 11... Nf6 {[%clk 0:02:59.5]} 12. Nxf6+ {[%clk 0:02:35.4]}
12... Bxf6 {[%clk 0:02:58.1]} 13. Qd2 {[%clk 0:02:35.3]} 13... O-O {[%clk
0:02:57]} 14. O-O {[%clk 0:02:35.5]} 14... Nd4 {[%clk 0:02:54.6]} 15. b3 {[%clk
0:02:31.2]} 15... Bg7 {[%clk 0:02:51.5]} 16. Nc2 {[%clk 0:02:30.8]} 16... Nxc2
{[%clk 0:02:50.8]} 17. Qxc2 {[%clk 0:02:31]} 17... b5 {[%clk 0:02:51.7]} 18.
Rac1 {[%clk 0:02:26.3]} 18... bxc4 {[%clk 0:02:49.7]} 19. Bxc4 {[%clk
0:02:26.6]} 19... Qh4 {[%clk 0:02:40.3]} 20. Qd3 {[%clk 0:02:19.2]} 20... Qe7
{[%clk 0:02:15.2]} 21. Bxa6 {[%clk 0:02:07.3]} 21... Ra8 {[%clk 0:02:15.7]} 22.
a4 {[%clk 0:02:05.5]} 22... f5 {[%clk 0:02:10.2]} 23. f3 {[%clk 0:02:05.3]}
23... Rfd8 {[%clk 0:02:02.2]} 24. Bc4 {[%clk 0:02:04.7]} 24... Rab8 {[%clk
0:01:56.1]} 25. Rfd1 {[%clk 0:01:59.5]} 25... h5 {[%clk 0:01:44]} 26. a5 {[%clk
0:01:58.7]} 26... Kh7 {[%clk 0:01:43.6]} 27. Bxe6 {[%clk 0:01:41.5]} 27... Qxe6
{[%clk 0:01:43.5]} 28. Rc4 {[%clk 0:01:38.5]} 28... Rb5 {[%clk 0:01:37]} 29. a6
{[%clk 0:01:34]} 29... d5 {[%clk 0:01:37.2]} 30. Rc7 {[%clk 0:01:27]} 30... Ra5
{[%clk 0:01:18.9]} 31. Bg5 {[%clk 0:01:19.2]} 31... Qb6+ {[%clk 0:01:05.1]} 32.
Kh1 {[%clk 0:01:13.8]} 32... Qxc7 {[%clk 0:01:05.5]} 33. Bxd8 {[%clk 0:01:13.6]}
33... Qxd8 {[%clk 0:01:06.4]} 34. b4 {[%clk 0:01:02.9]} 34... Ra4 {[%clk
0:00:55.4]} 35. exf5 {[%clk 0:01:02.8]} 35... Rxb4 {[%clk 0:00:44.2]} 36. fxg6+
{[%clk 0:01:02.3]} 36... Kh8 {[%clk 0:00:44.5]} 37. Qf5 {[%clk 0:00:56.3]} 37...
Ra4 {[%clk 0:00:39.8]} 38. Qxh5+ {[%clk 0:00:52]} 38... Kg8 {[%clk 0:00:40.3]}
39. Qg4 {[%clk 0:00:39.8]} 39... Rxa6 {[%clk 0:00:38.4]} 40. h3 {[%clk
0:00:30.2]} 40... d4 {[%clk 0:00:38.5]} 41. Qe4 {[%clk 0:00:23.9]} 41... Rd6
{[%clk 0:00:37.7]} 42. Rd3 {[%clk 0:00:17]} 42... Qe8 {[%clk 0:00:38.1]} 43. Rb3
{[%clk 0:00:11.7]} 43... Qxg6 {[%clk 0:00:36]} 44. Rb8+ {[%clk 0:00:11.2]} 44...
Kh7 {[%clk 0:00:36.6]} 45. Qh4+ {[%clk 0:00:09.9]} 45... Qh6 {[%clk 0:00:37.2]}
46. Qe4+ {[%clk 0:00:09.8]} 46... Rg6 {[%clk 0:00:37.6]} 47. Rb7 {[%clk
0:00:09.5]} 47... Qc1+ {[%clk 0:00:38.1]} 48. Kh2 {[%clk 0:00:09.5]} 48... Qf4+
{[%clk 0:00:39]} 49. Qxf4 {[%clk 0:00:09.7]} 49... exf4 {[%clk 0:00:39.9]} 0-1